[Event "FIDE Womens Grand Swiss 2023"]
[Site "Douglas/Isle of Man"]
[Date "2023.11.04"]
[Round "10.15"]
[White "Guichard, Pauline"]
[Black "Bulmaga, Irina"]
[Result "1/2-1/2"]
[ECO "E49"]
[WhiteElo "2358"]
[BlackElo "2423"]
[Annotator "ChessBase"]
[PlyCount "90"]
[EventDate "2023.10.04"]
[EventType "swiss"]
[EventCountry "GBR"]
[SourceTitle "playchess.com"]
[Source "ChessBase"]
[SourceQuality "1"]
[TimeControl "40/6000+30:20/3000+30:900+30"]

1. d4 {[%emt 0:10:04]} Nf6 {[%emt 0:10:11]} 2. c4 {[%emt 0:00:05]} e6 {[%emt 0:00:06]} 3. Nc3 {[%emt 0:00:17]} Bb4 {[%emt 0:00:11]} 4. e3 {[%emt 0:00:08]} O-O {[%emt 0:00:23]} 5. Bd3 {[%emt 0:00:38]} d5 {[%emt 0:00:25]} 6. a3 {[%emt 0:00:19]} Bxc3+ {[%emt 0:00:10]} 7. bxc3 {[%emt 0:00:05]} dxc4 {[%emt 0:00:19]} 8. Bxc4 {[%emt 0:00:08]} c5 {[%emt 0:00:16]} 9. Ne2 {[%emt 0:00:26]} Qc7 {[%emt 0:00:27]} 10. Bd3 {[%emt 0:00:29]} Nc6 {[%emt 0:01:49]} 11. O-O {[%emt 0:00:29]} e5 {[%emt 0:01:12]} 12. Ng3 {[%emt 0:00:34]} Re8 {[%emt 0:04:24]} 13. Qc2 {[%emt 0:03:01]} h6 {[%emt 0:04:16]} 14. Bb2 {[%emt 0:13:20]} Be6 {[%emt 0:16:06]} 15. h3 {[%emt 0:06:59]} Rac8 {[%emt 0:04:53]} 16. Rac1 {[%emt 0:11:51]} cxd4 {[%emt 0:03:50]} 17. cxd4 {[%emt 0:06:57]} Qb6 {[%emt 0:10:52]} 18. Qd2 {[%emt 0:00:15]} exd4 {[%emt 0:01:20]} 19. exd4 {[%emt 0:03:06]} Qa5 {[%emt 0:06:16]} 20. Qf4 {[%emt 0:02:50]} Qg5 {[%emt 0:04:51]} 21. Qxg5 {[%emt 0:04:17]} hxg5 {[%emt 0:00:20]} 22. Rc5 {[%emt 0:03:31]} Bd5 {[%emt 0:06:34]} 23. Nf5 {[%emt 0:07:01]} Be4 {[%emt 0:04:25]} 24. Bxe4 {[%emt 0:00:21]} Nxe4 {[%emt 0:00:07]} 25. Rc2 {[%emt 0:00:15]} Rcd8 {[%emt 0:03:44]} 26. Nxg7 {[%emt 0:08:41]} Kxg7 {[%emt 0:01:59]} 27. d5+ {[%emt 0:00:04]} Ne5 {[%emt 0:00:42]} 28. Re1 {[%emt 0:00:24]} Nf6 {[%emt 0:10:17]} 29. Bxe5 {[%emt 0:12:48]} Kg6 {[%emt 0:00:08]} 30. Kf1 {[%emt 0:05:52]} Nxd5 {[%emt 0:02:43]} 31. Rc5 {[%emt 0:01:21]} Re6 {[%emt 0:04:03]} 32. g3 {[%emt 0:04:42]} b6 {[%emt 0:01:20]} 33. Rcc1 {[%emt 0:02:27]} Rde8 {[%emt 0:03:07]} 34. Bc3 {[%emt 0:00:22]} Nxc3 {[%emt 0:00:25]} 35. Rxe6+ {[%emt 0:00:06]} Rxe6 {[%emt 0:00:04]} 36. Rxc3 {[%emt 0:00:06]} Re4 {[%emt 0:00:32]} 37. Kg2 {[%emt 0:02:21]} f6 {[%emt 0:00:02]} 38. g4 {[%emt 0:01:34]} b5 {[%emt 0:00:30]} 39. Kg3 {[%emt 0:00:42]} a5 {[%emt 0:01:07]} 40. Rc5 {[%emt 0:00:38]} Ra4 {[%emt 0:02:11]} 41. Rxb5 {[%emt 0:50:36]} Rxa3+ {[%emt 0:50:06]} 42. f3 {[%emt 0:00:23]} a4 {[%emt 0:00:00]} 43. Ra5 {[%emt 0:00:00]} Kf7 {[%emt 0:00:00]} 44. h4 {[%emt 0:00:00]} gxh4+ {[%emt 0:00:00]} 45. Kxh4 {[%emt 0:00:00]} Rxf3 {[%emt 0:00:00]} 1/2-1/2

[Event "FIDE Womens Grand Swiss 2023"]
[Site "Douglas/Isle of Man"]
[Date "2023.11.04"]
[Round "10.16"]
[White "Vantika Agrawal"]
[Black "Terbe, Julianna"]
[Result "1-0"]
[ECO "D12"]
[WhiteElo "2435"]
[BlackElo "2266"]
[Annotator "ChessBase"]
[PlyCount "69"]
[EventDate "2023.10.04"]
[EventType "swiss"]
[EventCountry "GBR"]
[SourceTitle "playchess.com"]
[Source "ChessBase"]
[SourceQuality "1"]
[TimeControl "40/6000+30:20/3000+30:900+30"]

1. d4 {[%emt 0:10:13]} d5 {[%emt 0:10:07]} 2. c4 {[%emt 0:00:12]} c6 {[%emt 0:00:05]} 3. Nf3 {[%emt 0:00:05]} Nf6 {[%emt 0:00:04]} 4. e3 {[%emt 0:00:04]} Bf5 {[%emt 0:00:06]} 5. Nc3 {[%emt 0:00:10]} e6 {[%emt 0:00:05]} 6. Nh4 {[%emt 0:00:07]} Bg6 {[%emt 0:00:04]} 7. Qb3 {[%emt 0:00:46]} Qc7 {[%emt 0:00:40]} 8. Bd2 {[%emt 0:00:32]} Ne4 {[%emt 0:01:16]} 9. Nxe4 {[%emt 0:14:03]} Bxe4 {[%emt 0:00:08]} 10. cxd5 {[%emt 0:04:29]} exd5 {[%emt 0:06:50]} 11. f3 {[%emt 0:02:07]} Bg6 {[%emt 0:00:05]} 12. Nxg6 {[%emt 0:08:57]} hxg6 {[%emt 0:00:05]} 13. O-O-O {[%emt 0:01:21]} Nd7 {[%emt 0:04:48]} 14. Kb1 {[%emt 0:04:30]} a5 {[%emt 0:05:26]} 15. e4 {[%emt 0:02:51]} Nb6 {[%emt 0:08:27]} 16. e5 {[%emt 0:11:40]} Be7 {[%emt 0:07:41]} 17. f4 {[%emt 0:00:57]} a4 {[%emt 0:03:08]} 18. Qc2 {[%emt 0:02:10]} a3 {[%emt 0:02:55]} 19. b3 {[%emt 0:01:00]} c5 {[%emt 0:02:13]} 20. Bb5+ {[%emt 0:01:31]} Kf8 {[%emt 0:00:08]} 21. dxc5 {[%emt 0:12:41]} Qxc5 {[%emt 0:00:33]} 22. Qxc5 {[%emt 0:00:30]} Bxc5 {[%emt 0:00:05]} 23. Rc1 {[%emt 0:00:02]} Bd4 {[%emt 0:09:44]} 24. Rc7 {[%emt 0:01:28]} g5 {[%emt 0:00:26]} 25. Rxb7 {[%emt 0:02:09]} gxf4 {[%emt 0:00:09]} 26. Bxf4 {[%emt 0:00:28]} Kg8 {[%emt 0:00:54]} 27. Rd1 {[%emt 0:04:35]} Bf2 {[%emt 0:00:29]} 28. Rf1 {[%emt 0:00:52]} Bd4 {[%emt 0:07:47]} 29. Bg3 {[%emt 0:01:04]} Rf8 {[%emt 0:00:10]} 30. e6 {[%emt 0:00:24]} Nc8 {[%emt 0:02:57]} 31. e7 {[%emt 0:02:50]} Nxe7 {[%emt 0:00:06]} 32. Rxe7 {[%emt 0:00:04]} Rh6 {[%emt 0:00:06]} 33. Rd7 {[%emt 0:00:48]} Rc8 {[%emt 0:01:09]} 34. Rxd5 {[%emt 0:00:22]} Bb2 {[%emt 0:00:16]} 35. Bc4 {[%emt 0:00:25]} 1-0

[Event "FIDE Womens Grand Swiss 2023"]
[Site "Douglas/Isle of Man"]
[Date "2023.11.04"]
[Round "10.17"]
[White "Fataliyeva, Ulviyya"]
[Black "Divya Deshmukh"]
[Result "0-1"]
[ECO "A06"]
[WhiteElo "2393"]
[BlackElo "2408"]
[Annotator "ChessBase"]
[PlyCount "64"]
[EventDate "2023.10.04"]
[EventType "swiss"]
[EventCountry "GBR"]
[SourceTitle "playchess.com"]
[Source "ChessBase"]
[SourceQuality "1"]
[TimeControl "40/6000+30:20/3000+30:900+30"]

1. Nf3 {[%emt 0:10:03]} d5 {[%emt 0:10:10]} 2. e3 {[%emt 0:00:05]} c5 {[%emt 0:01:09]} 3. b3 {[%emt 0:01:09]} Nc6 {[%emt 0:01:19]} 4. Bb2 {[%emt 0:00:05]} Bg4 {[%emt 0:00:20]} 5. h3 {[%emt 0:00:46]} Bh5 {[%emt 0:01:11]} 6. Bb5 {[%emt 0:01:04]} f6 {[%emt 0:01:43]} 7. d4 {[%emt 0:08:19]} Qa5+ {[%emt 0:03:28]} 8. Nc3 {[%emt 0:00:08]} e6 {[%emt 0:00:21]} 9. a3 {[%emt 0:01:08]} cxd4 {[%emt 0:12:22]} 10. exd4 {[%emt 0:01:19]} a6 {[%emt 0:02:06]} 11. Be2 {[%emt 0:02:09]} Bd6 {[%emt 0:06:40]} 12. O-O {[%emt 0:02:25]} Nge7 {[%emt 0:01:07]} 13. b4 {[%emt 0:01:11]} Qc7 {[%emt 0:00:24]} 14. b5 {[%emt 0:03:48]} Na5 {[%emt 0:04:03]} 15. Nd2 {[%emt 0:00:37]} Bf7 {[%emt 0:04:54]} 16. Na4 {[%emt 0:07:27]} O-O {[%emt 0:05:17]} 17. bxa6 {[%emt 0:03:49]} bxa6 {[%emt 0:01:48]} 18. Nb3 {[%emt 0:04:31]} e5 {[%emt 0:05:08]} 19. dxe5 {[%emt 0:15:39]} fxe5 {[%emt 0:02:56]} 20. Bc3 {[%emt 0:02:25]} Nxb3 {[%emt 0:08:21]} 21. cxb3 {[%emt 0:00:04]} d4 {[%emt 0:00:24]} 22. Bb2 {[%emt 0:02:06]} Qb7 {[%emt 0:02:57]} 23. Bc4 {[%emt 0:07:14]} Ng6 {[%emt 0:02:07]} 24. g3 {[%emt 0:05:35]} Bxc4 {[%emt 0:02:15]} 25. bxc4 {[%emt 0:00:04]} Rf6 {[%emt 0:00:11]} 26. f3 {[%emt 0:12:47]} Raf8 {[%emt 0:02:59]} 27. Kg2 {[%emt 0:00:14]} e4 {[%emt 0:12:42]} 28. f4 {[%emt 0:00:04]} Nxf4+ {[%emt 0:06:35]} 29. gxf4 {[%emt 0:00:38]} Rg6+ {[%emt 0:00:30]} 30. Kh1 {[%emt 0:00:59]} Qd7 {[%emt 0:01:35]} 31. f5 {[%emt 0:04:17]} Rxf5 {[%emt 0:00:38]} 32. c5 {[%emt 0:02:07]} e3 {[%emt 0:02:27]} 0-1

[Event "FIDE Womens Grand Swiss 2023"]
[Site "Douglas/Isle of Man"]
[Date "2023.11.04"]
[Round "10.18"]
[White "Aulia, Medina Warda"]
[Black "Mkrtchyan, Mariam"]
[Result "1-0"]
[ECO "B92"]
[WhiteElo "2362"]
[BlackElo "2343"]
[Annotator "ChessBase"]
[PlyCount "99"]
[EventDate "2023.10.04"]
[EventType "swiss"]
[EventCountry "GBR"]
[SourceTitle "playchess.com"]
[Source "ChessBase"]
[SourceQuality "1"]
[TimeControl "40/6000+30:20/3000+30:900+30"]

1. e4 {[%emt 0:10:02]} c5 {[%emt 0:10:04]} 2. Nf3 {[%emt 0:00:06]} d6 {[%emt 0:00:04]} 3. d4 {[%emt 0:00:03]} cxd4 {[%emt 0:00:04]} 4. Nxd4 {[%emt 0:00:04]} Nf6 {[%emt 0:00:05]} 5. Nc3 {[%emt 0:00:03]} a6 {[%emt 0:00:04]} 6. Be2 {[%emt 0:00:28]} e5 {[%emt 0:00:47]} 7. Nb3 {[%emt 0:00:04]} Be7 {[%emt 0:00:21]} 8. O-O {[%emt 0:00:06]} O-O {[%emt 0:00:27]} 9. Re1 {[%emt 0:00:04]} Be6 {[%emt 0:01:09]} 10. Bf3 {[%emt 0:00:05]} Qc7 {[%emt 0:01:59]} 11. a4 {[%emt 0:00:09]} Nbd7 {[%emt 0:00:18]} 12. Nd2 {[%emt 0:00:06]} Nb6 {[%emt 0:05:53]} 13. Nf1 {[%emt 0:00:15]} d5 {[%emt 0:05:12]} 14. a5 {[%emt 0:08:38]} Nc4 {[%emt 0:03:38]} 15. Nxd5 {[%emt 0:00:24]} Bxd5 {[%emt 0:07:19]} 16. exd5 {[%emt 0:00:06]} Nxa5 {[%emt 0:05:08]} 17. b3 {[%emt 0:05:15]} Bd6 {[%emt 0:02:44]} 18. Bd2 {[%emt 0:11:30]} b6 {[%emt 0:00:03]} 19. Ng3 {[%emt 0:01:03]} Nb7 {[%emt 0:04:19]} 20. h3 {[%emt 0:01:21]} g6 {[%emt 0:03:18]} 21. c4 {[%emt 0:01:29]} a5 {[%emt 0:02:12]} 22. Bc3 {[%emt 0:07:02]} Rfe8 {[%emt 0:06:46]} 23. Qd2 {[%emt 0:05:01]} Nc5 {[%emt 0:00:06]} 24. Rab1 {[%emt 0:00:05]} Nfd7 {[%emt 0:04:55]} 25. Bg4 {[%emt 0:03:26]} Nf8 {[%emt 0:02:14]} 26. f4 {[%emt 0:08:20]} f6 {[%emt 0:16:15]} 27. fxe5 {[%emt 0:00:58]} fxe5 {[%emt 0:00:03]} 28. Ne4 {[%emt 0:00:45]} Nxe4 {[%emt 0:03:18]} 29. Rxe4 {[%emt 0:00:04]} h5 {[%emt 0:01:13]} 30. Bf3 {[%emt 0:02:35]} Re7 {[%emt 0:00:20]} 31. Qg5 {[%emt 0:00:55]} Kh8 {[%emt 0:03:48]} 32. Kh1 {[%emt 0:00:50]} Rae8 {[%emt 0:00:07]} 33. Rbe1 {[%emt 0:01:23]} Qb8 {[%emt 0:04:27]} 34. g4 {[%emt 0:03:20]} hxg4 {[%emt 0:01:48]} 35. Bxg4 {[%emt 0:01:35]} Kg7 {[%emt 0:01:48]} 36. Bf5 {[%emt 0:02:33]} Rf7 {[%emt 0:01:53]} 37. Rg1 {[%emt 0:01:07]} Qd8 {[%emt 0:05:01]} 38. Qh5 {[%emt 0:05:06]} Qf6 {[%emt 0:05:28]} 39. Rh4 {[%emt 0:13:05]} Qxh4 {[%emt 0:00:04]} 40. Qxh4 {[%emt 0:00:02]} Rxf5 {[%emt 0:00:04]} 41. Bd2 {[%emt 0:50:08]} Kf7 {[%emt 0:52:52]} 42. Bh6 {[%emt 0:01:19]} Bc5 {[%emt 0:00:00]} 43. Rd1 {[%emt 0:00:00]} Nd7 {[%emt 0:00:00]} 44. Bg5 {[%emt 0:00:00]} Rg8 {[%emt 0:00:00]} 45. d6 {[%emt 0:00:00]} Bf2 {[%emt 0:00:00]} 46. Qg4 {[%emt 0:00:00]} Rh8 {[%emt 0:00:00]} 47. Rf1 {[%emt 0:00:00]} Nc5 {[%emt 0:00:00]} 48. Kg2 {[%emt 0:00:00]} Rh5 {[%emt 0:00:00]} 49. h4 {[%emt 0:00:00]} Nd3 {[%emt 0:00:00]} 50. d7 {[%emt 0:00:00]} 1-0

[Event "FIDE Womens Grand Swiss 2023"]
[Site "Douglas/Isle of Man"]
[Date "2023.11.04"]
[Round "10.19"]
[White "Matnadze Bujiashvili, Ann"]
[Black "Injac, Teodora"]
[Result "0-1"]
[ECO "D77"]
[WhiteElo "2400"]
[BlackElo "2426"]
[Annotator "ChessBase"]
[PlyCount "114"]
[EventDate "2023.10.04"]
[EventType "swiss"]
[EventCountry "GBR"]
[SourceTitle "playchess.com"]
[Source "ChessBase"]
[SourceQuality "1"]
[TimeControl "40/6000+30:20/3000+30:900+30"]

1. Nf3 {[%emt 0:10:05]} d5 {[%emt 0:10:16]} 2. g3 {[%emt 0:00:07]} g6 {[%emt 0:00:22]} 3. Bg2 {[%emt 0:00:11]} Bg7 {[%emt 0:00:06]} 4. d4 {[%emt 0:00:23]} Nf6 {[%emt 0:00:51]} 5. O-O {[%emt 0:00:08]} O-O {[%emt 0:00:19]} 6. c4 {[%emt 0:00:11]} dxc4 {[%emt 0:01:14]} 7. Na3 {[%emt 0:00:10]} a5 {[%emt 0:00:12]} 8. Nxc4 {[%emt 0:00:19]} a4 {[%emt 0:00:09]} 9. Bf4 {[%emt 0:03:12]} Nc6 {[%emt 0:02:54]} 10. Nce5 {[%emt 0:02:11]} Nxe5 {[%emt 0:02:14]} 11. Bxe5 {[%emt 0:00:13]} c6 {[%emt 0:04:32]} 12. Nd2 {[%emt 0:02:49]} Be6 {[%emt 0:08:02]} 13. Qc2 {[%emt 0:01:07]} Bh6 {[%emt 0:09:00]} 14. Bxf6 {[%emt 0:01:08]} exf6 {[%emt 0:00:01]} 15. e3 {[%emt 0:00:22]} f5 {[%emt 0:00:52]} 16. Nc4 {[%emt 0:01:32]} Bg7 {[%emt 0:02:01]} 17. Rfd1 {[%emt 0:01:05]} Qc7 {[%emt 0:03:30]} 18. Rac1 {[%emt 0:01:44]} Rfd8 {[%emt 0:03:23]} 19. Qe2 {[%emt 0:07:03]} Rac8 {[%emt 0:07:14]} 20. Qe1 {[%emt 0:04:49]} h5 {[%emt 0:07:16]} 21. a3 {[%emt 0:07:43]} Bd5 {[%emt 0:04:13]} 22. Bxd5 {[%emt 0:10:30]} Rxd5 {[%emt 0:00:29]} 23. Qb4 {[%emt 0:00:55]} b5 {[%emt 0:15:14]} 24. Nd2 {[%emt 0:04:59]} Qd7 {[%emt 0:01:15]} 25. Nf3 {[%emt 0:02:54]} c5 {[%emt 0:01:05]} 26. Qe1 {[%emt 0:03:12]} Rd8 {[%emt 0:00:16]} 27. Qe2 {[%emt 0:03:48]} h4 {[%emt 0:03:00]} 28. Rd2 {[%emt 0:24:09]} cxd4 {[%emt 0:09:30]} 29. Nxd4 {[%emt 0:02:15]} Bxd4 {[%emt 0:12:44]} 30. Rcd1 {[%emt 0:03:45]} Qe6 {[%emt 0:00:52]} 31. exd4 {[%emt 0:06:35]} Qf6 {[%emt 0:00:04]} 32. Qe3 {[%emt 0:02:11]} h3 {[%emt 0:00:14]} 33. Rd3 {[%emt 0:03:00]} Kg7 {[%emt 0:00:28]} 34. R3d2 {[%emt 0:00:10]} R8d7 {[%emt 0:00:24]} 35. Kf1 {[%emt 0:01:11]} Re7 {[%emt 0:00:44]} 36. Qc3 {[%emt 0:00:32]} Re4 {[%emt 0:01:20]} 37. Rd3 {[%emt 0:00:21]} Qd6 {[%emt 0:01:16]} 38. Re3 {[%emt 0:01:08]} Qf6 {[%emt 0:01:01]} 39. Red3 {[%emt 0:00:45]} f4 {[%emt 0:00:30]} 40. g4 {[%emt 0:00:57]} Qe6 {[%emt 0:00:40]} 41. R3d2 {[%emt 0:25:49]} Qf6 {[%emt 0:34:18]} 42. Qxh3 {[%emt 0:11:50]} f3 {[%emt 0:03:09]} 43. Rd3 {[%emt 0:00:20]} Rexd4 {[%emt 0:02:47]} 44. g5 {[%emt 0:04:11]} Qf4 {[%emt 0:04:13]} 45. Re1 {[%emt 0:03:34]} Re5 {[%emt 0:03:33]} 46. Rde3 {[%emt 0:04:49]} Rde4 {[%emt 0:01:27]} 47. Qg3 {[%emt 0:01:50]} Rxe3 {[%emt 0:00:30]} 48. fxe3 {[%emt 0:00:08]} Qc4+ {[%emt 0:01:00]} 49. Kg1 {[%emt 0:00:11]} Rf5 {[%emt 0:00:57]} 50. Rf1 {[%emt 0:01:27]} Qc5 {[%emt 0:00:34]} 51. Qf2 {[%emt 0:00:26]} Rxg5+ {[%emt 0:00:36]} 52. Kh1 {[%emt 0:00:01]} Qe5 {[%emt 0:00:49]} 53. Qxf3 {[%emt 0:01:56]} Rf5 {[%emt 0:00:05]} 54. Qg2 {[%emt 0:00:06]} Rxf1+ {[%emt 0:00:14]} 55. Qxf1 {[%emt 0:00:01]} Qxb2 {[%emt 0:00:11]} 56. e4 {[%emt 0:00:56]} b4 {[%emt 0:00:55]} 57. Qf4 {[%emt 0:00:50]} Qf6 {[%emt 0:01:18]} 0-1

[Event "FIDE Womens Grand Swiss 2023"]
[Site "Douglas/Isle of Man"]
[Date "2023.11.04"]
[Round "10.20"]
[White "Sandu, Mihaela"]
[Black "Kosteniuk, Alexandra"]
[Result "0-1"]
[ECO "B49"]
[WhiteElo "2298"]
[BlackElo "2523"]
[Annotator "RC"]
[PlyCount "114"]
[EventDate "2023.10.04"]
[EventType "swiss"]
[EventCountry "GBR"]
[SourceTitle "playchess.com"]
[Source "ChessBase"]
[SourceQuality "1"]
[TimeControl "40/6000+30:20/3000+30:900+30"]

1. e4 {[%emt 0:10:04]} c5 {[%emt 0:10:04]} 2. Nf3 {[%emt 0:00:12]} e6 {[%emt 0:00:04]} 3. d4 {[%emt 0:00:15]} cxd4 {[%emt 0:00:05]} 4. Nxd4 {[%emt 0:00:02]} Nc6 {[%emt 0:00:11]} 5. Nc3 {[%emt 0:00:18]} Qc7 {[%emt 0:00:18]} 6. Be2 {[%emt 0:01:05]} Nf6 {[%emt 0:00:15]} 7. Be3 {[%emt 0:04:41]} a6 {[%emt 0:01:01]} 8. Nxc6 {[%emt 0:03:04]} bxc6 {[%emt 0:04:06]} 9. f4 {[%emt 0:00:48]} d5 {[%emt 0:03:14]} 10. e5 {[%emt 0:04:48]} Nd7 {[%emt 0:00:25]} 11. O-O {[%emt 0:00:49]} Be7 {[%emt 0:10:55]} 12. Kh1 {[%emt 0:01:57]} g6 {[%emt 0:10:24]} 13. Qe1 {[%emt 0:11:02]} Bb7 {[%emt 0:03:06]} 14. Rd1 {[%emt 0:04:02]} c5 {[%emt 0:04:33]} 15. Bc1 {[%emt 0:03:37]} O-O {[%emt 0:05:51]} 16. b3 {[%emt 0:05:13]} Nb6 {[%emt 0:05:35]} 17. Bf3 {[%emt 0:00:12]} Rad8 {[%emt 0:00:38]} 18. a4 {[%emt 0:03:25]} Kh8 {[%emt 0:04:59]} 19. Bb2 {[%emt 0:05:14]} f5 {[%emt 0:05:21]} 20. exf6 {[%emt 0:02:11]} Bxf6 {[%emt 0:00:03]} 21. a5 {[%emt 0:07:16]} Nc8 {[%emt 0:00:17]} 22. Qxe6 {[%emt 0:01:38]} Qg7 {[%emt 0:01:46]} 23. Qe1 {[%emt 0:02:28]} Rfe8 {[%emt 0:04:55]} 24. Qd2 {[%emt 0:01:25]} Nd6 {[%emt 0:03:49]} 25. Rfe1 {[%emt 0:13:08]} Nf5 {[%emt 0:04:47]} 26. Ba1 {[%emt 0:01:01]} Bd4 {[%emt 0:11:53]} 27. h3 {[%emt 0:15:46]} g5 {[%emt 0:09:07]} 28. Na4 {[%emt 0:06:35]} Rxe1+ {[%emt 0:01:48]} 29. Qxe1 {[%emt 0:00:12]} Bxa1 {[%emt 0:01:20]} 30. Rxa1 {[%emt 0:00:05]} Ne3 {[%emt 0:00:29]} 31. Nxc5 {[%emt 0:01:24]} Nxc2 {[%emt 0:00:34]} 32. Qe5 {[%emt 0:01:21]} Qxe5 {[%emt 0:00:21]} 33. fxe5 {[%emt 0:00:04]} Nxa1 {[%emt 0:00:04]} 34. Nxb7 {[%emt 0:00:25]} Re8 {[%emt 0:00:18]} 35. Be2 {[%emt 0:00:44]} Rxe5 {[%emt 0:00:33]} 36. Bxa6 {[%emt 0:00:03]} Nxb3 {[%emt 0:00:34]} 37. Bd3 {[%emt 0:00:18]} Re3 {[%emt 0:01:23]} 38. Bf5 {[%emt 0:00:41]} Re1+ {[%emt 0:02:53]} 39. Kh2 {[%emt 0:00:04]} Ra1 {[%emt 0:00:06]} 40. Be6 {[%emt 0:00:53]} Nxa5 {[%emt 0:00:05]} 41. Bxd5 {[%emt 0:50:05]} Nxb7 {[%emt 0:50:13]} 42. Bxb7 {[%emt 0:00:06]} h5 {[%emt 0:02:20]} 43. Bf3 {[%emt 0:00:00]} h4 {[%emt 0:00:00]} 44. Bd5 {[%emt 0:00:00]} Kg7 {[%emt 0:00:00]} 45. Bf3 {[%emt 0:00:00]} Kf6 {[%emt 0:00:00]} 46. Bd5 {[%emt 0:00:00]} Ke5 {[%emt 0:00:00]} 47. Bf3 {[%emt 0:00:00]} Kf4 {[%emt 0:00:00]} 48. Bb7 {[%emt 0:00:00]} Ra3 {[%emt 0:00:00]} 49. Bc6 {[%emt 0:00:00]} Rc3 {[%emt 0:00:00]} 50. Bb7 {[%emt 0:00:00]} Rg3 {[%emt 0:00:00]} 51. Bc6 {[%emt 0:00:00]} g4 {[%emt 0:00:00]} 52. hxg4 {[%emt 0:00:00]} Rxg4 {[%emt 0:00:00]} 53. Bb7 {[%emt 0:00:00]} Rg7 {[%emt 0:00:00]} 54. Bc6 {[%emt 0:00:00]} Rc7 {[%emt 0:00:00]} 55. Bd5 {[%emt 0:00:00]} Re7 {[%emt 0:00:00]} 56. Bc6 {[%emt 0:00:00]} h3 {[%emt 0:00:00]} 57. g3+ {[%emt 0:00:00]} Kg4 {[%emt 0:00:00]} 0-1

[Event "FIDE Womens Grand Swiss 2023"]
[Site "Douglas/Isle of Man"]
[Date "2023.11.04"]
[Round "10.21"]
[White "Roebers, Eline"]
[Black "Danielian, Elina"]
[Result "1-0"]
[ECO "B09"]
[WhiteElo "2390"]
[BlackElo "2416"]
[Annotator "ChessBase"]
[PlyCount "63"]
[EventDate "2023.10.04"]
[EventType "swiss"]
[EventCountry "GBR"]
[SourceTitle "playchess.com"]
[Source "ChessBase"]
[SourceQuality "1"]
[TimeControl "40/6000+30:20/3000+30:900+30"]

1. e4 {[%emt 0:10:01]} d6 {[%emt 0:10:11]} 2. d4 {[%emt 0:00:04]} Nf6 {[%emt 0:00:03]} 3. Nc3 {[%emt 0:00:06]} g6 {[%emt 0:00:05]} 4. f4 {[%emt 0:00:40]} Bg7 {[%emt 0:00:05]} 5. Nf3 {[%emt 0:00:16]} O-O {[%emt 0:00:07]} 6. a3 {[%emt 0:00:12]} c5 {[%emt 0:01:32]} 7. dxc5 {[%emt 0:00:05]} Qa5 {[%emt 0:00:42]} 8. b4 {[%emt 0:01:47]} Qd8 {[%emt 0:00:06]} 9. Bd2 {[%emt 0:01:49]} dxc5 {[%emt 0:00:51]} 10. e5 {[%emt 0:00:47]} Nfd7 {[%emt 0:20:17]} 11. Bd3 {[%emt 0:01:00]} Nc6 {[%emt 0:01:15]} 12. h4 {[%emt 0:03:29]} cxb4 {[%emt 0:02:01]} 13. Ne4 {[%emt 0:00:04]} h5 {[%emt 0:27:41]} 14. axb4 {[%emt 0:09:47]} Nb6 {[%emt 0:00:10]} 15. Qe2 {[%emt 0:00:59]} Bg4 {[%emt 0:04:35]} 16. c3 {[%emt 0:00:38]} Qc8 {[%emt 0:11:52]} 17. Nf2 {[%emt 0:03:40]} Bf5 {[%emt 0:00:35]} 18. Bxf5 {[%emt 0:02:29]} Qxf5 {[%emt 0:00:06]} 19. b5 {[%emt 0:00:06]} Nd8 {[%emt 0:00:53]} 20. g4 {[%emt 0:00:11]} hxg4 {[%emt 0:00:57]} 21. Nd4 {[%emt 0:00:19]} Qd7 {[%emt 0:10:33]} 22. h5 {[%emt 0:02:29]} gxh5 {[%emt 0:00:10]} 23. f5 {[%emt 0:13:16]} Qd5 {[%emt 0:00:31]} 24. f6 {[%emt 0:01:23]} exf6 {[%emt 0:00:28]} 25. Rxh5 {[%emt 0:01:05]} Re8 {[%emt 0:03:40]} 26. Nxg4 {[%emt 0:01:33]} Nc4 {[%emt 0:11:42]} 27. O-O-O {[%emt 0:01:57]} Nxe5 {[%emt 0:02:16]} 28. Nf5 {[%emt 0:03:02]} Nd3+ {[%emt 0:00:26]} 29. Qxd3 {[%emt 0:00:04]} Qxd3 {[%emt 0:00:05]} 30. Nxf6+ {[%emt 0:00:11]} Bxf6 {[%emt 0:01:03]} 31. Rg1+ {[%emt 0:00:05]} Kf8 {[%emt 0:00:29]} 32. Bh6+ {[%emt 0:00:06]} 1-0